[Event "Berkeley Summer IM 2019"]
[Site "Berkeley"]
[Date "2019.08.17"]
[Round "1.1"]
[White "Wang, Annie"]
[Black "Lujan, Carolina"]
[Result "1-0"]
[ECO "D85"]
[WhiteElo "2321"]
[BlackElo "2352"]
[Annotator "ChessBase"]
[PlyCount "121"]
[EventDate "2019.08.17"]
[EventCountry "USA"]
[SourceTitle "playchess.com"]
[Source "ChessBase"]
[SourceQuality "1"]
[TimeControl "5400+30"]

1. d4 {[%emt 0:00:00]} Nf6 {[%emt 0:00:03]} 2. c4 {[%emt 0:00:00]} g6 {[%emt 0:00:15]} 3. Nc3 {[%emt 0:00:00]} d5 {[%emt 0:00:08]} 4. cxd5 {[%emt 0:00:00]} Nxd5 {[%emt 0:00:05]} 5. e4 {[%emt 0:00:00]} Nxc3 {[%emt 0:00:07]} 6. bxc3 {[%emt 0:00:07]} Bg7 {[%emt 0:00:06]} 7. Bb5+ {[%emt 0:00:10]} c6 {[%emt 0:00:08]} 8. Ba4 {[%emt 0:00:07]} O-O {[%emt 0:00:18]} 9. Ne2 {[%emt 0:00:11]} e5 {[%emt 0:00:26]} 10. O-O {[%emt 0:00:35]} Nd7 {[%emt 0:00:15]} 11. Be3 {[%emt 0:00:57]} Qe7 {[%emt 0:01:02]} 12. f3 {[%emt 0:00:31]} Nb6 {[%emt 0:14:11]} 13. Bb3 {[%emt 0:00:14]} Be6 {[%emt 0:03:22]} 14. d5 {[%emt 0:16:06]} cxd5 {[%emt 0:13:28]} 15. exd5 {[%emt 0:00:09]} Rad8 {[%emt 0:04:52]} 16. c4 {[%emt 0:00:31]} e4 {[%emt 0:09:45]} 17. Nf4 {[%emt 0:16:38]} Bf5 {[%emt 0:11:01]} 18. Rc1 {[%emt 0:06:41]} exf3 {[%emt 0:10:16]} 19. Qxf3 {[%emt 0:01:32]} Rfe8 {[%emt 0:03:33]} 20. Rfe1 {[%emt 0:04:23]} Qb4 {[%emt 0:00:46]} 21. Qf2 {[%emt 0:07:03]} Re4 {[%emt 0:07:32]} 22. Nd3 {[%emt 0:09:43]} Qf8 {[%emt 0:02:27]} 23. Nc5 {[%emt 0:03:35]} Rxe3 {[%emt 0:02:02]} 24. Qxe3 {[%emt 0:01:24]} Bh6 {[%emt 0:00:17]} 25. Qf2 {[%emt 0:03:19]} Bxc1 {[%emt 0:00:12]} 26. Rxc1 {[%emt 0:00:06]} Rc8 {[%emt 0:00:44]} 27. Nxb7 {[%emt 0:01:33]} Nxd5 {[%emt 0:03:39]} 28. c5 {[%emt 0:08:56]} Nb4 {[%emt 0:03:33]} 29. Bc4 {[%emt 0:01:45]} Nd3 {[%emt 0:03:15]} 30. Bxd3 {[%emt 0:00:08]} Bxd3 {[%emt 0:00:05]} 31. Qe3 {[%emt 0:01:05]} Ba6 {[%emt 0:03:15]} 32. Nd6 {[%emt 0:00:12]} Rc6 {[%emt 0:01:10]} 33. Re1 {[%emt 0:03:39]} Bc8 {[%emt 0:01:19]} 34. Qe8 {[%emt 0:01:12]} Rxc5 {[%emt 0:01:51]} 35. Qxf8+ {[%emt 0:00:06]} Kxf8 {[%emt 0:00:02]} 36. Re8+ {[%emt 0:00:14]} Kg7 {[%emt 0:00:02]} 37. Rxc8 {[%emt 0:00:05]} Rd5 {[%emt 0:00:42]} 38. Nc4 {[%emt 0:01:32]} Rd1+ {[%emt 0:00:21]} 39. Kf2 {[%emt 0:00:12]} Rc1 {[%emt 0:00:38]} 40. Nd6 {[%emt 0:01:08]} Rd1 {[%emt 0:00:23]} 41. Ne4 {[%emt 0:00:30]} f5 {[%emt 0:00:59]} 42. Rc7+ {[%emt 0:00:32]} Kh6 {[%emt 0:00:49]} 43. Nc3 {[%emt 0:00:12]} Rd2+ {[%emt 0:00:06]} 44. Kf3 {[%emt 0:01:23]} g5 {[%emt 0:00:42]} 45. h3 {[%emt 0:01:56]} Kg6 {[%emt 0:01:19]} 46. a4 {[%emt 0:01:02]} h5 {[%emt 0:00:27]} 47. Ne2 {[%emt 0:00:36]} a5 {[%emt 0:00:43]} 48. Rc6+ {[%emt 0:00:33]} Kf7 {[%emt 0:00:06]} 49. Rc5 {[%emt 0:00:07]} g4+ {[%emt 0:00:38]} 50. Ke3 {[%emt 0:01:32]} Ra2 {[%emt 0:00:11]} 51. Rxf5+ {[%emt 0:00:24]} Kg7 {[%emt 0:00:21]} 52. hxg4 {[%emt 0:01:38]} Ra3+ {[%emt 0:00:59]} 53. Kf2 {[%emt 0:00:12]} Rxa4 {[%emt 0:00:09]} 54. gxh5 {[%emt 0:00:07]} Ra1 {[%emt 0:00:10]} 55. g4 {[%emt 0:01:10]} a4 {[%emt 0:00:04]} 56. g5 {[%emt 0:00:28]} a3 {[%emt 0:00:03]} 57. Ra5 {[%emt 0:00:07]} a2 {[%emt 0:00:41]} 58. Ra7+ {[%emt 0:00:10]} Kg8 {[%emt 0:00:05]} 59. h6 {[%emt 0:00:49]} Rb1 {[%emt 0:01:02]} 60. Rxa2 {[%emt 0:00:06]} Rb5 {[%emt 0:00:04]} 61. g6 {[%emt 0:00:16]} 1-0

[Event "Berkeley Summer IM 2019"]
[Site "Berkeley"]
[Date "2019.08.17"]
[Round "1.2"]
[White "Krush, Irina"]
[Black "Hernandez Moya, Yuleisy"]
[Result "1-0"]
[ECO "E49"]
[WhiteElo "2417"]
[BlackElo "2199"]
[Annotator "ChessBase"]
[PlyCount "69"]
[EventDate "2019.08.17"]
[EventCountry "USA"]
[SourceTitle "playchess.com"]
[Source "ChessBase"]
[SourceQuality "1"]
[TimeControl "5400+30"]

1. d4 {[%emt 0:00:00]} Nf6 {[%emt 0:00:00]} 2. c4 {[%emt 0:00:31]} e6 {[%emt 0:00:00]} 3. Nc3 {[%emt 0:01:09]} Bb4 {[%emt 0:00:16]} 4. f3 {[%emt 0:01:58]} d5 {[%emt 0:02:14]} 5. a3 {[%emt 0:00:10]} Bxc3+ {[%emt 0:01:39]} 6. bxc3 {[%emt 0:00:10]} c5 {[%emt 0:00:12]} 7. cxd5 {[%emt 0:00:26]} exd5 {[%emt 0:00:22]} 8. e3 {[%emt 0:00:40]} O-O {[%emt 0:03:18]} 9. Bd3 {[%emt 0:00:38]} b6 {[%emt 0:02:13]} 10. Ne2 {[%emt 0:01:11]} Re8 {[%emt 0:03:15]} 11. O-O {[%emt 0:00:33]} Ba6 {[%emt 0:00:50]} 12. Bxa6 {[%emt 0:00:51]} Nxa6 {[%emt 0:00:05]} 13. Qd3 {[%emt 0:01:06]} Nc7 {[%emt 0:00:43]} 14. Ra2 {[%emt 0:07:47]} Qd7 {[%emt 0:03:46]} 15. a4 {[%emt 0:01:05]} Rad8 {[%emt 0:17:02]} 16. Ng3 {[%emt 0:00:49]} Re6 {[%emt 0:01:00]} 17. Rd1 {[%emt 0:03:40]} Qc6 {[%emt 0:08:32]} 18. Re1 {[%emt 0:01:53]} Rde8 {[%emt 0:03:51]} 19. Rae2 {[%emt 0:09:19]} Qxa4 {[%emt 0:03:19]} 20. e4 {[%emt 0:00:10]} cxd4 {[%emt 0:07:08]} 21. cxd4 {[%emt 0:01:29]} Nb5 {[%emt 0:15:13]} 22. Bb2 {[%emt 0:00:39]} Rc8 {[%emt 0:00:33]} 23. e5 {[%emt 0:01:54]} Ne8 {[%emt 0:03:58]} 24. f4 {[%emt 0:01:04]} Qc4 {[%emt 0:03:05]} 25. Qe3 {[%emt 0:02:34]} Rec6 {[%emt 0:02:45]} 26. f5 {[%emt 0:02:39]} f6 {[%emt 0:01:17]} 27. Nh5 {[%emt 0:07:02]} Qb4 {[%emt 0:03:25]} 28. Qf3 {[%emt 0:04:09]} Rd8 {[%emt 0:04:48]} 29. Qg4 {[%emt 0:05:22]} Qf8 {[%emt 0:01:57]} 30. Re3 {[%emt 0:16:57]} Rc2 {[%emt 0:04:53]} 31. Rb3 {[%emt 0:01:33]} a6 {[%emt 0:02:11]} 32. Nf4 {[%emt 0:02:09]} Nec7 {[%emt 0:00:47]} 33. Qh4 {[%emt 0:11:50]} Re8 {[%emt 0:00:54]} 34. Ng6 {[%emt 0:00:55]} Qf7 {[%emt 0:00:28]} 35. Qxh7+ {[%emt 0:00:20]} 1-0

[Event "Berkeley Summer IM 2019"]
[Site "Berkeley"]
[Date "2019.08.17"]
[Round "1.3"]
[White "Uyanga, Byambaa"]
[Black "Cervantes Landeiro, Thalia"]
[Result "0-1"]
[ECO "B86"]
[WhiteElo "2114"]
[BlackElo "2118"]
[Annotator "ChessBase"]
[PlyCount "92"]
[EventDate "2019.08.17"]
[EventCountry "USA"]
[SourceTitle "playchess.com"]
[Source "ChessBase"]
[SourceQuality "1"]
[TimeControl "5400+30"]

1. e4 {[%emt 0:00:14]} c5 {[%emt 0:00:00]} 2. Nf3 {[%emt 0:00:33]} d6 {[%emt 0:00:00]} 3. d4 {[%emt 0:00:19]} cxd4 {[%emt 0:00:00]} 4. Nxd4 {[%emt 0:00:09]} Nf6 {[%emt 0:00:07]} 5. Nc3 {[%emt 0:00:10]} a6 {[%emt 0:00:08]} 6. Bc4 {[%emt 0:01:17]} e6 {[%emt 0:00:29]} 7. Bb3 {[%emt 0:00:16]} Nbd7 {[%emt 0:00:23]} 8. g4 {[%emt 0:00:24]} Nc5 {[%emt 0:06:01]} 9. f3 {[%emt 0:01:21]} b5 {[%emt 0:07:22]} 10. g5 {[%emt 0:03:31]} Nfd7 {[%emt 0:01:43]} 11. Be3 {[%emt 0:00:36]} Bb7 {[%emt 0:01:50]} 12. Qd2 {[%emt 0:01:05]} Be7 {[%emt 0:04:17]} 13. O-O-O {[%emt 0:01:06]} Nb6 {[%emt 0:07:17]} 14. a3 {[%emt 0:12:29]} Nc4 {[%emt 0:19:34]} 15. Bxc4 {[%emt 0:01:38]} bxc4 {[%emt 0:00:10]} 16. h4 {[%emt 0:02:38]} Qa5 {[%emt 0:02:16]} 17. h5 {[%emt 0:04:31]} Rb8 {[%emt 0:07:14]} 18. g6 {[%emt 0:01:51]} Qb6 {[%emt 0:07:49]} 19. gxf7+ {[%emt 0:02:28]} Kxf7 {[%emt 0:00:39]} 20. Qe2 {[%emt 0:27:05]} Ba8 {[%emt 0:06:52]} 21. Qxc4 {[%emt 0:10:27]} Qxb2+ {[%emt 0:02:46]} 22. Kd2 {[%emt 0:00:05]} Rhc8 {[%emt 0:02:55]} 23. Ke2 {[%emt 0:08:03]} d5 {[%emt 0:07:42]} 24. exd5 {[%emt 0:03:48]} Ne4 {[%emt 0:01:34]} 25. dxe6+ {[%emt 0:05:06]} Kg8 {[%emt 0:04:38]} 26. Qxc8+ {[%emt 0:00:42]} Rxc8 {[%emt 0:00:06]} 27. Nxe4 {[%emt 0:00:05]} Bxe4 {[%emt 0:01:00]} 28. fxe4 {[%emt 0:00:07]} Qxa3 {[%emt 0:01:02]} 29. Rhg1 {[%emt 0:05:05]} Bf6 {[%emt 0:01:28]} 30. Nf5 {[%emt 0:00:36]} Rxc2+ {[%emt 0:01:10]} 31. Kf3 {[%emt 0:00:07]} Rc3 {[%emt 0:04:42]} 32. e5 {[%emt 0:01:53]} Qc5 {[%emt 0:00:54]} 33. exf6 {[%emt 0:04:55]} Qxf5+ {[%emt 0:00:14]} 34. Ke2 {[%emt 0:00:12]} Rc2+ {[%emt 0:01:09]} 35. Rd2 {[%emt 0:01:57]} Rxd2+ {[%emt 0:00:20]} 36. Kxd2 {[%emt 0:00:25]} Qxf6 {[%emt 0:00:13]} 37. h6 {[%emt 0:00:42]} Qxe6 {[%emt 0:01:51]} 38. Rxg7+ {[%emt 0:00:31]} Kf8 {[%emt 0:00:20]} 39. Rxh7 {[%emt 0:00:27]} Qa2+ {[%emt 0:00:17]} 40. Kc3 {[%emt 0:00:23]} Qa3+ {[%emt 0:00:17]} 41. Kd4 {[%emt 0:00:15]} Qb4+ {[%emt 0:00:36]} 42. Kd5 {[%emt 0:00:16]} Qb3+ {[%emt 0:00:08]} 43. Kd4 {[%emt 0:00:29]} Qb6+ {[%emt 0:00:10]} 44. Kd5 {[%emt 0:01:10]} Qxe3 {[%emt 0:00:11]} 45. Rh8+ {[%emt 0:00:27]} Kf7 {[%emt 0:00:05]} 46. h7 {[%emt 0:00:35]} Qd3+ {[%emt 0:00:10]} 0-1

[Event "Berkeley Summer IM 2019"]
[Site "Berkeley"]
[Date "2019.08.17"]
[Round "1.4"]
[White "Belakovskaia, Anjelina"]
[Black "Saikhanchimeg, Tsogtsaikhan"]
[Result "0-1"]
[ECO "E17"]
[WhiteElo "2191"]
[BlackElo "2011"]
[Annotator "ChessBase"]
[PlyCount "104"]
[EventDate "2019.08.17"]
[EventCountry "USA"]
[SourceTitle "playchess.com"]
[Source "ChessBase"]
[SourceQuality "1"]
[TimeControl "5400+30"]

1. c4 Nf6 2. d4 {[%emt 0:00:30]} e6 {[%emt 0:00:30]} 3. Nf3 {[%emt 0:00:00]} b6 {[%emt 0:02:26]} 4. g3 {[%emt 0:00:00]} Bb7 {[%emt 0:00:39]} 5. Bg2 {[%emt 0:00:07]} Be7 {[%emt 0:03:41]} 6. O-O {[%emt 0:01:12]} O-O {[%emt 1:25:44]} 7. b3 d5 8. Ne5 c5 9. dxc5 bxc5 10. Bb2 Nc6 11. Nxc6 Bxc6 12. cxd5 exd5 13. Qc2 Rc8 14. Rd1 Qb6 15. e3 Rfd8 16. Nd2 Bb7 17. Rac1 a5 18. h3 h6 19. Nb1 a4 20. Nc3 axb3 21. axb3 c4 22. bxc4 dxc4 23. Na4 Qa6 24. Rxd8+ Bxd8 25. Bxb7 Qxb7 26. Bd4 Qd7 27. Kh2 Qd6 28. Qf5 Qe6 29. Qxe6 fxe6 30. Kg2 Ne4 31. f4 Ba5 32. Rc2 Rc6 33. Kf3 Nd2+ 34. Ke2 Ne4 35. g4 Kf7 36. Nb2 Nd6 37. Be5 c3 38. Nd1 Nb5 {[%emt 0:00:00]} 39. Kd3 Na3 {[%emt 0:00:00]} 40. Rc1 c2 {[%emt 0:00:00]} 41. Nb2 Rc8 {[%emt 0:00:00]} 42. Bd4 g5 {[%emt 0:00:00]} 43. f5 exf5 {[%emt 0:00:00]} 44. gxf5 h5 {[%emt 0:00:00]} 45. Na4 Rb8 {[%emt 0:00:00]} 46. Bb2 Rd8+ {[%emt 0:00:00]} 47. Ke2 g4 {[%emt 0:00:00]} 48. hxg4 hxg4 {[%emt 0:00:00]} 49. Bd4 g3 {[%emt 0:00:00]} 50. Bc5 Bd2 {[%emt 0:00:00]} 51. Bxa3 Bxc1 {[%emt 0:00:00]} 52. Bxc1 Rd1 {[%emt 0:00:00]} 0-1

[Event "Berkeley Summer IM 2019"]
[Site "Berkeley"]
[Date "2019.08.17"]
[Round "1.5"]
[White "Matras-Clement, Agnieszka"]
[Black "Ordaz Valdes, Lisandra Teresa"]
[Result "0-1"]
[ECO "C54"]
[WhiteElo "2260"]
[BlackElo "2393"]
[Annotator "ChessBase"]
[PlyCount "74"]
[EventDate "2019.08.17"]
[EventCountry "USA"]
[SourceTitle "playchess.com"]
[Source "ChessBase"]
[SourceQuality "1"]
[TimeControl "5400+30"]

1. e4 {[%emt 0:00:00]} e5 {[%emt 0:00:00]} 2. Nf3 {[%emt 0:00:00]} Nc6 {[%emt 0:00:10]} 3. Bc4 {[%emt 0:00:00]} Bc5 {[%emt 0:00:30]} 4. c3 {[%emt 0:00:00]} Nf6 {[%emt 0:00:06]} 5. d3 {[%emt 0:00:00]} O-O {[%emt 0:00:29]} 6. Nbd2 {[%emt 0:00:13]} a6 {[%emt 0:02:32]} 7. h3 {[%emt 0:03:33]} Ba7 {[%emt 0:09:37]} 8. Bb3 {[%emt 0:07:41]} d6 {[%emt 0:06:18]} 9. Nf1 {[%emt 0:03:33]} Ne7 {[%emt 0:06:21]} 10. Ng3 {[%emt 0:06:03]} Ng6 {[%emt 0:01:39]} 11. O-O {[%emt 0:00:17]} c6 {[%emt 0:03:39]} 12. d4 {[%emt 0:05:06]} h6 {[%emt 0:11:46]} 13. Re1 {[%emt 0:00:48]} Re8 {[%emt 0:00:16]} 14. Be3 {[%emt 0:05:11]} exd4 {[%emt 0:10:11]} 15. Nxd4 {[%emt 0:01:03]} d5 {[%emt 0:05:16]} 16. exd5 {[%emt 0:18:45]} Nxd5 {[%emt 0:00:28]} 17. Qh5 {[%emt 0:00:43]} Re5 {[%emt 0:07:39]} 18. Ndf5 {[%emt 0:15:44]} Bxf5 {[%emt 0:13:15]} 19. Bxa7 {[%emt 0:14:44]} Be4 {[%emt 0:04:45]} 20. Qd1 {[%emt 0:02:15]} Bxg2 {[%emt 0:02:55]} 21. Rxe5 {[%emt 0:08:08]} Nxe5 {[%emt 0:01:43]} 22. Bd4 {[%emt 0:00:32]} Bf3 {[%emt 0:03:30]} 23. Qf1 {[%emt 0:00:04]} Ng6 {[%emt 0:02:00]} 24. Qd3 {[%emt 0:01:07]} Nh4 {[%emt 0:00:11]} 25. Bc2 {[%emt 0:02:58]} g6 {[%emt 0:00:05]} 26. Kh2 {[%emt 0:01:17]} Qg5 {[%emt 0:01:42]} 27. Rg1 {[%emt 0:00:49]} Re8 {[%emt 0:01:26]} 28. a3 {[%emt 0:01:42]} Nf4 {[%emt 0:01:31]} 29. Qd2 {[%emt 0:00:30]} Be2 {[%emt 0:02:51]} 30. Nxe2 {[%emt 0:01:12]} Nf3+ {[%emt 0:00:05]} 31. Kh1 {[%emt 0:00:02]} Qh4 {[%emt 0:01:54]} 32. Nxf4 {[%emt 0:00:20]} Nxd2 {[%emt 0:00:02]} 33. Bxg6 {[%emt 0:00:36]} Qxf4 {[%emt 0:00:40]} 34. Bc2+ {[%emt 0:01:18]} Kf8 {[%emt 0:00:19]} 35. Bc5+ {[%emt 0:00:31]} Re7 {[%emt 0:00:04]} 36. Re1 {[%emt 0:00:18]} Nf3 {[%emt 0:00:32]} 37. Bxe7+ {[%emt 0:00:24]} Kg7 {[%emt 0:00:53]} 0-1

[Event "Berkeley Summer IM 2019"]
[Site "Berkeley"]
[Date "2019.08.20"]
[Round "6.4"]
[White "Saikhanchimeg, Tsogtsaikhan"]
[Black "Hernandez Moya, Yuleisy"]
[Result "1-0"]
[ECO "C00"]
[WhiteElo "2011"]
[BlackElo "2199"]
[Annotator "ChessBase"]
[PlyCount "55"]
[EventDate "2019.08.14"]
[EventType "tourn"]
[EventCountry "USA"]
[SourceTitle "playchess.com"]
[Source "ChessBase"]
[SourceQuality "1"]
[TimeControl "5400+30"]

1. e4 {[%emt 0:00:00]} e6 {[%emt 0:00:00]} 2. Qe2 {[%emt 0:00:07]} e5 {[%emt 0:01:41]} 3. Nf3 {[%emt 0:01:10]} Nc6 {[%emt 0:00:07]} 4. c3 {[%emt 0:00:45]} d6 {[%emt 0:04:11]} 5. d4 {[%emt 0:00:53]} g6 {[%emt 0:00:34]} 6. Bg5 {[%emt 0:02:10]} f6 {[%emt 0:04:06]} 7. Be3 {[%emt 0:00:50]} Bg7 {[%emt 0:00:29]} 8. Qd2 {[%emt 0:07:54]} f5 {[%emt 0:08:42]} 9. exf5 {[%emt 0:12:49]} Bxf5 {[%emt 0:00:22]} 10. dxe5 {[%emt 0:06:16]} Nxe5 {[%emt 0:01:56]} 11. Nxe5 {[%emt 0:06:34]} Bxe5 {[%emt 0:01:28]} 12. Bc4 {[%emt 0:03:11]} c6 {[%emt 0:15:50]} 13. Na3 {[%emt 0:14:35]} d5 {[%emt 0:05:41]} 14. O-O-O {[%emt 0:05:06]} Nf6 {[%emt 0:21:52]} 15. Bd3 {[%emt 0:07:31]} Bxd3 {[%emt 0:17:04]} 16. Qxd3 {[%emt 0:00:08]} Qc7 {[%emt 0:00:31]} 17. g3 {[%emt 0:03:34]} O-O-O {[%emt 0:02:05]} 18. Bxa7 {[%emt 0:05:43]} Bd6 {[%emt 0:07:54]} 19. Bd4 {[%emt 0:07:42]} Rhf8 {[%emt 0:00:06]} 20. Nc2 {[%emt 0:02:53]} Qa5 {[%emt 0:01:37]} 21. Kb1 {[%emt 0:00:30]} Kc7 {[%emt 0:00:05]} 22. Rhe1 {[%emt 0:01:35]} Ra8 {[%emt 0:00:54]} 23. a3 {[%emt 0:00:09]} Nd7 {[%emt 0:01:38]} 24. c4 {[%emt 0:04:16]} c5 {[%emt 0:01:21]} 25. Bc3 {[%emt 0:00:11]} Qa6 {[%emt 0:01:05]} 26. Qxd5 {[%emt 0:00:13]} Rf5 {[%emt 0:00:57]} 27. Ba5+ {[%emt 0:01:21]} Kb8 {[%emt 0:00:43]} 28. Qxd6+ {[%emt 0:02:01]} 1-0

[Event "Berkeley Summer IM 2019"]
[Site "Berkeley"]
[Date "2019.08.19"]
[Round "6.5"]
[White "Saikhanchimeg, Tsogtsaikhan"]
[Black "Cervantes Landeiro, Thalia"]
[Result "*"]
[ECO "B96"]
[WhiteElo "2011"]
[BlackElo "2118"]
[Annotator "ChessBase"]
[PlyCount "35"]
[EventDate "2019.08.14"]
[EventType "tourn"]
[EventCountry "USA"]
[SourceTitle "playchess.com"]
[Source "ChessBase"]
[SourceQuality "1"]
[TimeControl "5400+30"]

1. e4 {[%emt 0:11:45]} c5 {[%emt 0:00:00]} 2. Nf3 {[%emt 0:00:13]} d6 {[%emt 0:00:00]} 3. d4 {[%emt 0:00:16]} cxd4 {[%emt 0:00:00]} 4. Nxd4 {[%emt 1:19:46]} Nf6 {[%emt 0:00:02]} 5. Nc3 {[%emt 0:00:06]} a6 {[%emt 0:00:05]} 6. Bg5 {[%emt 0:00:28]} e6 {[%emt 0:00:12]} 7. f4 {[%emt 0:01:09]} h6 {[%emt 0:00:31]} 8. Bh4 {[%emt 0:00:11]} Qb6 {[%emt 0:00:11]} 9. a3 {[%emt 0:00:21]} Be7 {[%emt 0:00:20]} 10. Bf2 {[%emt 0:00:46]} Qc7 {[%emt 0:00:13]} 11. Qf3 {[%emt 0:01:00]} Nbd7 {[%emt 0:00:20]} 12. O-O-O {[%emt 0:03:04]} b5 {[%emt 0:00:33]} 13. g4 {[%emt 0:12:18]} Bb7 {[%emt 0:00:19]} 14. Bd3 {[%emt 0:21:52]} Nc5 {[%emt 0:08:39]} 15. g5 {[%emt 0:06:49]} hxg5 {[%emt 0:04:08]} 16. fxg5 {[%emt 0:00:08]} Nfd7 {[%emt 0:01:59]} 17. g6 {[%emt 0:01:00]} fxg6 {[%emt 0:11:56]} 18. Bg3 {[%emt 0:04:11]} *

[Event "Berkeley Summer IM 2019"]
[Site "Berkeley"]
[Date "2019.08.20"]
[Round "7.1"]
[White "Krush, Irina"]
[Black "Uyanga, Byambaa"]
[Result "1/2-1/2"]
[ECO "E73"]
[WhiteElo "2417"]
[BlackElo "2114"]
[Annotator "NA"]
[PlyCount "48"]
[EventDate "2019.08.14"]
[EventType "tourn"]
[EventCountry "USA"]
[SourceTitle "playchess.com"]
[Source "ChessBase"]
[SourceQuality "1"]
[TimeControl "5400+30"]

1. d4 {[%emt 0:00:00]} Nf6 {[%emt 0:00:00]} 2. c4 {[%emt 0:00:00]} g6 {[%emt 0:00:00]} 3. Nc3 {[%emt 0:00:00]} Bg7 {[%emt 0:00:00]} 4. e4 {[%emt 0:00:02]} d6 {[%emt 0:00:00]} 5. Be2 {[%emt 0:00:09]} O-O {[%emt 0:00:17]} 6. Be3 {[%emt 0:00:08]} e5 {[%emt 0:09:38]} 7. d5 {[%emt 0:00:21]} Nbd7 {[%emt 0:00:28]} 8. g4 {[%emt 0:00:27]} Ne8 {[%emt 0:03:23]} 9. h4 {[%emt 0:01:13]} f5 {[%emt 0:04:53]} 10. exf5 {[%emt 0:01:30]} gxf5 {[%emt 0:00:17]} 11. gxf5 {[%emt 0:00:11]} Nc5 {[%emt 0:02:38]} 12. Nf3 {[%emt 0:02:40]} Bxf5 {[%emt 0:00:36]} 13. h5 {[%emt 0:02:04]} Bf6 {[%emt 0:13:17]} 14. Qd2 {[%emt 0:03:51]} Kh8 {[%emt 0:02:23]} 15. O-O-O {[%emt 0:02:01]} Qd7 {[%emt 0:10:33]} 16. Nh4 {[%emt 0:10:53]} Bxh4 {[%emt 0:01:10]} 17. Rxh4 {[%emt 0:00:10]} Nf6 {[%emt 0:00:38]} 18. f4 {[%emt 0:01:59]} Nfe4 {[%emt 0:10:58]} 19. Nxe4 {[%emt 0:02:18]} Nxe4 {[%emt 0:00:17]} 20. Qe1 {[%emt 0:00:08]} Qa4 {[%emt 0:00:48]} 21. Bd3 {[%emt 0:07:16]} Qxa2 {[%emt 0:01:06]} 22. fxe5 {[%emt 0:34:37]} Qa1+ {[%emt 0:14:57]} 23. Kc2 {[%emt 0:00:31]} Qa4+ {[%emt 0:00:08]} 24. Kc1 {[%emt 0:00:40]} Qa1+ {[%emt 0:00:21]} 1/2-1/2

[Event "Berkeley Summer IM 2019"]
[Site "Berkeley"]
[Date "2019.08.20"]
[Round "7.2"]
[White "Cervantes Landeiro, Thalia"]
[Black "Lujan, Carolina"]
[Result "0-1"]
[ECO "A65"]
[WhiteElo "2118"]
[BlackElo "2352"]
[Annotator "NA"]
[PlyCount "98"]
[EventDate "2019.08.14"]
[EventType "tourn"]
[EventCountry "USA"]
[SourceTitle "playchess.com"]
[Source "ChessBase"]
[SourceQuality "1"]
[TimeControl "5400+30"]

1. d4 {[%emt 0:00:00]} Nf6 {[%emt 0:00:00]} 2. c4 {[%emt 0:00:00]} g6 {[%emt 0:00:00]} 3. f3 {[%emt 0:00:00]} e6 {[%emt 0:00:04]} 4. e4 {[%emt 0:00:10]} c5 {[%emt 0:00:08]} 5. d5 {[%emt 0:00:34]} d6 {[%emt 0:00:49]} 6. Nc3 {[%emt 0:00:39]} Bg7 {[%emt 0:02:27]} 7. Nge2 {[%emt 0:04:33]} exd5 {[%emt 0:05:08]} 8. cxd5 {[%emt 0:00:10]} O-O {[%emt 0:03:51]} 9. Be3 {[%emt 0:03:09]} Nbd7 {[%emt 0:02:17]} 10. Ng3 {[%emt 0:01:45]} h5 {[%emt 0:08:13]} 11. Be2 {[%emt 0:05:41]} Re8 {[%emt 0:04:55]} 12. O-O {[%emt 0:06:02]} a6 {[%emt 0:09:40]} 13. a4 {[%emt 0:00:43]} b6 {[%emt 0:00:32]} 14. Nh1 {[%emt 0:05:22]} Bb7 {[%emt 0:14:40]} 15. Qd2 {[%emt 0:04:06]} Rc8 {[%emt 0:01:13]} 16. b3 {[%emt 0:07:49]} Nh7 {[%emt 0:05:15]} 17. Rac1 {[%emt 0:08:58]} Qe7 {[%emt 0:02:32]} 18. Nf2 {[%emt 0:05:41]} f5 {[%emt 0:08:20]} 19. Bh6 {[%emt 0:04:29]} Bd4 {[%emt 0:07:47]} 20. exf5 {[%emt 0:07:33]} gxf5 {[%emt 0:00:19]} 21. Bd3 {[%emt 0:01:26]} Qf6 {[%emt 0:01:36]} 22. Ne2 {[%emt 0:02:23]} Be5 {[%emt 0:01:39]} 23. Bf4 {[%emt 0:02:11]} h4 {[%emt 0:01:47]} 24. Qc2 {[%emt 0:03:01]} Bxd5 {[%emt 0:08:12]} 25. Bxf5 {[%emt 0:01:10]} Qg7 {[%emt 0:02:23]} 26. Bh6 {[%emt 0:05:45]} Qxh6 {[%emt 0:02:06]} 27. Bxd7 {[%emt 0:00:13]} Qg7 {[%emt 0:02:56]} 28. Bxc8 {[%emt 0:01:13]} Rxc8 {[%emt 0:02:14]} 29. Qd3 {[%emt 0:01:37]} Be6 {[%emt 0:01:25]} 30. f4 {[%emt 0:01:13]} Bb2 {[%emt 0:00:51]} 31. Qxd6 {[%emt 0:01:57]} Bxb3 {[%emt 0:00:14]} 32. Rb1 {[%emt 0:01:41]} Bc4 {[%emt 0:00:13]} 33. Kh1 {[%emt 0:03:24]} Re8 {[%emt 0:00:13]} 34. Ng1 {[%emt 0:06:40]} Bxf1 {[%emt 0:00:20]} 35. Rxf1 {[%emt 0:00:02]} c4 {[%emt 0:00:54]} 36. Qc6 {[%emt 0:00:46]} Qf7 {[%emt 0:00:33]} 37. Qxb6 {[%emt 0:01:02]} c3 {[%emt 0:00:12]} 38. Nd3 {[%emt 0:01:46]} Qe6 {[%emt 0:01:06]} 39. Qb4 {[%emt 0:00:31]} Qe4 {[%emt 0:00:33]} 40. Qb3+ {[%emt 0:00:12]} Qe6 {[%emt 0:00:05]} 41. Qc2 {[%emt 0:00:43]} Rb8 {[%emt 0:00:51]} 42. Ne5 {[%emt 0:01:24]} Nf8 {[%emt 0:01:34]} 43. Ne2 {[%emt 0:01:29]} h3 {[%emt 0:00:33]} 44. Nxc3 {[%emt 0:01:31]} Bxc3 {[%emt 0:00:46]} 45. Qxc3 {[%emt 0:00:03]} hxg2+ {[%emt 0:00:02]} 46. Kxg2 {[%emt 0:00:05]} Qd5+ {[%emt 0:00:25]} 47. Qf3 {[%emt 0:01:04]} Rb2+ {[%emt 0:00:11]} 48. Kh3 {[%emt 0:00:33]} Rb3 {[%emt 0:00:33]} 49. Rg1+ {[%emt 0:00:34]} Kh7 {[%emt 0:00:09]} 0-1